Cogmind - Beta 15 @@@ ROGUE MODE // 2025.08.13 @ 13:24:06 Player: karotgaemin Result: Self-destructed Performance ------------- Evolutions (2) 1000 Regions Visited (3) 600 Robots Destroyed (48) 240 Value Destroyed (1265) 1265 Prototype IDs (0) 0 Alien Tech Used (0) 0 Bonus (0) 0 TOTAL SCORE: 3105 Bonus ------- None Cogmind --------- Core Integrity 234/550 Matter 267/300 Energy 52/125 System Corruption 0% Temperature Cool (0) Movement Walking (260) Ox2 Location -8/Materials Parts ------- > --- POWER (1) -------- Light Ion Engine > --- PROPULSION (4) --- Aluminum Leg > --- UTILITY (4) ------ Improved Heat Sink Large Storage Unit Advanced Targeting Computer Hacking Suite > --- WEAPON (2) ------- (None) > --- INVENTORY (15) --- Improved Signal Interpreter Hacking Suite Heavy EM Pulse Gun Beam Rifle Peak State ------------ > --- POWER ------------ Improved Deuterium Engine > --- PROPULSION ------- Aluminum Leg Aluminum Leg Improved Aluminum Leg Improved Carbon-fiber Leg > --- UTILITY ---------- Improved Heat Sink Large Storage Unit Advanced Targeting Computer Hacking Suite > --- WEAPON ----------- Particle Gun Pulse Rifle > --- INVENTORY -------- Ion Engine Light Ion Engine Aluminum Leg Aluminum Leg Improved Signal Interpreter Hacking Suite Heavy EM Pulse Gun EM Shotgun EM Shotgun Beam Rifle Particle Gun Particle Gun Particle Gun Mini Grenade Launcher [Rating: 29] Favorites ----------- Power Ion Engine Engine Ion Engine Propulsion Aluminum Leg Leg Aluminum Leg Utility ECM Suite Device ECM Suite Storage Large Storage Unit Processor Advanced Targeting Computer Hackware Hacking Suite Weapon Particle Gun Energy Gun Particle Gun Ballistic Gun Light Assault Rifle Launcher Mini Grenade Launcher Build | -11 -10 -9 -8 ------- Run | Yrd Mat Mat Mat Slots Evolved 4 | . . 2 2 Power . | . . . . Propulsion 2 | . . 2 . Utility 2 | . . . 2 Weapon . | . . . . Parts Attached 44 | 7 16 10 11 Power 6 | 2 1 1 2 Engine 6 | 2 1 1 2 Core . | . . . . Reactor . | . . . . Propulsion 16 | 2 6 5 3 Treads . | . . . . Leg 16 | 2 6 5 3 Wheel . | . . . . Hover . | . . . . Flight . | . . . . Utility 8 | 1 3 . 4 Device 3 | . 1 . 2 Storage 3 | 1 2 . . Processor 1 | . . . 1 Hackware 1 | . . . 1 Protection . | . . . . Artifact . | . . . . Weapon 14 | 2 6 4 2 Energy Gun 12 | 1 6 3 2 Energy Cannon . | . . . . Ballistic Gun 1 | 1 . . . Ballistic Cannon . | . . . . Launcher 1 | . . 1 . Special Weapon . | . . . . Impact Weapon . | . . . . Slashing Weapon . | . . . . Piercing Weapon . | . . . . Special Melee Weapon . | . . . . Unidentified Prototypes . | . . . . Corrupted Parts 2 | . 2 . . System Corruption 2 | . 2 . . Parts Lost 24 | . 3 . 21 Power 4 | . 1 . 3 Propulsion 10 | . 1 . 9 Utility 1 | . . . 1 Weapon 9 | . 1 . 8 Highest Loss Streak 15 | . 2 . 15 To Critical Strikes 1 | . . . 1 Average Backups 10 | 1 8 13 11 Power 1 | . . 1 1 Propulsion 1 | . 1 2 1 Utility 2 | . 1 4 2 Weapon 5 | . 5 5 6 Tool/Special . | . . . . Unused Backups 5 | . 2 . 3 Power . | . . . . Propulsion . | . . . . Utility 2 | . . . 2 Weapon 3 | . 2 . 1 Tool/Special . | . . . . Average Slot Usage (%) 96 | . 96 98 90 Engine 11 | . 13 11 8 Leg 34 | . 28 42 29 Device 11 | . 11 11 11 Storage 12 | . 14 11 9 Hackware 1 | . . . 8 Energy Gun 23 | . 26 22 16 Peak Build Rating 29 | 6 10 15 29 Average Rating 12 | 4 9 14 20 On Entrance 7 | . 6 10 15 Naked Turns . | . . . . Heaviest Build 37 | 12 33 35 37 Greatest Support 51 | 20 20 43 51 Greatest Overweight (x) 2 | 1 1 1 2 Average Overweight (x) . | . . . . Largest Inventory Capacity 15 | 8 15 15 15 Average Capacity 13 | 7 11 15 15 Most Carried 15 | 2 13 15 15 Average Carried 10 | 1 8 14 11 Final Capacity 15 | 8 15 15 15 Final Carried 15 | 2 13 15 4 Class Distribution -------------------- 52% | Mutant 47% | Scavenger-Mutant Dominant Class ---------------- Mutant | -10/Materials Scavenger-Mutant | -9/Materials Scavenger-Mutant | -8/Materials Resources | -11 -10 -9 -8 ----------- Run | Yrd Mat Mat Mat Matter Collected 868 | 189 326 186 167 Remotely . | . . . . Salvage Created 1548 | . 525 550 473 Parts 105 | . 30 36 39 Haulers Intercepted 1 | . 1 . . Recyclers Shooed 1 | . . . 1 Parts Field Recycled . | . . . . Retrieved Matter . | . . . . Parts Self-Destructed . | . . . . Prevented . | . . . . Kills | -11 -10 -9 -8 ------- Run | Yrd Mat Mat Mat Combat Hostiles Destroyed 35 | . 11 15 9 Guns 27 | . 7 12 8 AOE 7 | . 4 3 . Classes Destroyed 11 | . 8 2 1 Worker 2 | . 1 . 1 Builder 4 | . 1 . 3 Hauler 1 | . 1 . . Recycler 2 | . 1 . 1 Operator 3 | . 1 2 . Watcher 1 | . 1 . . Swarmer 10 | . 3 4 3 Grunt 15 | . 8 6 1 Duelist 1 | . . 1 . Sentry 7 | . . 4 3 Specialist 2 | . . . 2 Best Kill Streak 7 | . 3 4 7 Combat Bots Only 4 | . 3 4 3 Max Kills in Single Turn 4 | . 3 3 4 Gunslinging . | . . . . Exploded 3 | . 3 3 . Melee . | . . . . Uniques/NPCs Destroyed . | . . . . Combat | -11 -10 -9 -8 -------- Run | Yrd Mat Mat Mat Hostile Shots Fired 235 | . 48 81 106 Missed 67 | . 11 30 26 Hits 168 | . 37 51 80 Projectile 168 | . 37 51 80 Critical Strikes 5 | . . 2 3 Damage Taken 2748 | . 648 618 1482 Core 652 | . 152 184 316 Absorbed by Shields . | . . . . Core Remaining (%) 64 | 100 39 54 . Volleys Fired 112 | . 31 42 39 Largest 2 | . 2 2 2 Hottest 130 | . 130 130 130 Shots Fired 216 | . 61 82 73 Gun 215 | . 61 81 73 Cannon . | . . . . Launcher 1 | . . 1 . Special . | . . . . Kinetic . | . . . . Thermal 167 | . 17 81 69 Explosive 1 | . . 1 . Electromagnetic 48 | . 44 . 4 Robot Hit Streak 15 | . 7 8 15 Robot Miss Streak 5 | . 4 5 3 Penetration Max . | . . . . Secondary Targets 4 | . . 2 2 Max Gunslinging Chain 1 | . . 1 1 Shots Hit Robots 143 | . 46 45 52 Core Hits 79 | . 31 25 23 Critical Kills . | . . . . Critical Parts Destroyed . | . . . . Critical Strikes 2 | . . 1 1 Burn 2 | . . 1 1 Melee Attacks . | . . . . Impact . | . . . . Slashing . | . . . . Piercing . | . . . . Sneak Attacks . | . . . . Combat Hostiles . | . . . . Follow-up Attacks . | . . . . Damage Inflicted 2997 | . 925 834 1238 Guns 2270 | . 720 678 872 Cannons . | . . . . Explosions 724 | . 205 153 366 Melee . | . . . . Ramming 3 | . . 3 . Kinetic . | . . . . Thermal 2196 | . 347 678 1171 Explosive 153 | . . 153 . Electromagnetic 645 | . 578 . 67 Impact . | . . . . Slashing . | . . . . Piercing . | . . . . Highest Corruption 2 | . 2 1 . Average Corruption 1 | . 1 1 . Corruption Purged . | . . . . Corruption Blocked . | . . . . Effects 9 | . 5 4 . Matter Fused 2 | . 1 1 . Heat Flow Errors 2 | . 2 . . Energy Discharges 2 | . 1 1 . Data Loss (minor) 2 | . . 2 . Alerts 1 | . 1 . . Overload Shots . | . . . . Overflow Damage 20 | . 12 3 5 Projectiles . | . . . . Explosions 20 | . 12 3 5 Melee . | . . . . Knockbacks . | . . . . Impact . | . . . . Kinetic . | . . . . Secondary . | . . . . Self-Inflicted Damage 210 | . 195 . 15 Shots 5 | . 4 . 1 Rammed . | . . . . Targets Rammed 1 | . . 1 . Kicked 1 | . . 1 . Crushed . | . . . . Highest Temperature 417 | . 326 417 198 Average Temperature 104 | . 93 134 57 Received Heat Transfer 822 | . 231 249 342 Effects 6 | . 2 4 . Shutdowns 1 | . . 1 . Energy Bleed 3 | . 2 1 . Interference 1 | . . 1 . Short Circuit 1 | . . 1 . Siege Activations . | . . . . Martial Activations . | . . . . Shielding Activations . | . . . . Robots Disrupted . | . . . . Combat Hostiles . | . . . . Robots Corrupted 1 | . 1 . . Combat Hostiles . | . . . . Parts Fried 8 | . 8 . . Impact Corruptions . | . . . . Robots Melted 1 | . . . 1 Combat Hostiles 1 | . . . 1 Parts Melted 7 | . 1 4 2 Heat Transferred 4696 | . 633 1702 2361 Parts Sabotaged . | . . . . Parts Stolen . | . . . . Parts Stripped . | . . . . Power Chain Reactions 6 | . 4 . 2 Alert | -11 -10 -9 -8 ------- Run | Yrd Mat Mat Mat Maximum Alert Level . | . . . . Low Security (%) 100 | 100 100 100 100 Level 1 . | . . . . Level 2 . | . . . . Level 3 . | . . . . Level 4 . | . . . . Level 5 . | . . . . High Security . | . . . . Max Security . | . . . . Peak Influence 156 | . 138 156 121 Initial 60 | . . 38 60 Average 45 | . 50 30 85 Influence Increases 1047 | . 355 401 291 Destroy 0b10 Robot/C 700 | . 220 300 180 Destroy 0b10 Robot/NC 65 | . 30 10 25 Destroy Leader 174 | . 44 80 50 Disable Machine 45 | . 30 . 15 Destroy Structure 48 | . 31 11 6 Lose Combat Pursuer 15 | . . . 15 Influence Decreases 1026 | . 263 349 414 Entered New Map 138 | . . 54 84 Time Decay 648 | . 233 295 120 Lost Part 240 | . 30 . 210 Squads Dispatched 9 | . 1 3 5 Investigation 2 | . . 2 . Extermination . | . . . . Reinforcement 4 | . 1 1 2 Assault . | . . . . Garrison 3 | . . . 3 Intercept . | . . . . Searches Triggered . | . . . . Construction Impeded . | . . . . Haulers Reinforced . | . . . . Active Scanning Responses . | . . . . Cargo Convoy Interrupts . | . . . . Stealth | -11 -10 -9 -8 --------- Run | Yrd Mat Mat Mat Distress Signals 10 | . 2 6 2 Communications Jammed . | . . . . Distress Signals . | . . . . Times Spotted 74 | . 25 31 18 Peak Tracking Total 9 | . 4 4 9 Tactical Retreats 20 | . 5 14 1 Traps | -11 -10 -9 -8 ------- Run | Yrd Mat Mat Mat Traps Triggered 3 | . . 3 . Indirectly . | . . . . Trap Hack Attempts . | . . . . Triggered . | . . . . Disarmed . | . . . . Reprogrammed . | . . . . Reused . | . . . . Traps Extracted . | . . . . Installed . | . . . . Triggered . | . . . . Machines | -11 -10 -9 -8 ---------- Run | Yrd Mat Mat Mat Machines Disabled 3 | . 2 . 1 Max in Single Turn 2 | . 2 . 1 Machines Repaired . | . . . . Machines Dismantled . | . . . . Machines Sabotaged . | . . . . Overloaded Fab Kills . | . . . . Hacking | -11 -10 -9 -8 --------- Run | Yrd Mat Mat Mat Machines Accessed 1 | . . . 1 Terminals 1 | . . . 1 Fabricators . | . . . . Repair Stations . | . . . . Recycling Units . | . . . . Scanalyzers . | . . . . Garrison Access . | . . . . Total Hacks 3 | . . . 3 Successful 3 | . . . 3 Failed . | . . . . Catastrophic . | . . . . Database Lockouts . | . . . . Manual . | . . . . Terminals 3 | . . . 3 Fabricators . | . . . . Repair Stations . | . . . . Recycling Units . | . . . . Scanalyzers . | . . . . Garrison Access . | . . . . Terminal Hacks 3 | . . . 3 Record 1 | . . . 1 Dispatch Records 1 | . . . 1 Zone Layout 1 | . . . 1 Fabricator Hacks . | . . . . Repair Station Hacks . | . . . . Recycling Unit Hacks . | . . . . Scanalyzer . | . . . . Garrison Access Hacks . | . . . . Unauthorized Hacks . | . . . . Terminals . | . . . . Fabricators . | . . . . Repair Stations . | . . . . Recycling Units . | . . . . Scanalyzers . | . . . . Garrison Access . | . . . . Data Cores Recovered 2 | . 1 1 . Used . | . . . . Hacking Detections . | . . . . Full Trace Events . | . . . . Feedback Events . | . . . . Feedback Blocked . | . . . . Robot Schematics Acquired . | . . . . Robots Built . | . . . . Authchips . | . . . . Time . | . . . . Total Robot Build Rating . | . . . . Part Schematics Acquired . | . . . . Parts Built . | . . . . Authchips . | . . . . Time . | . . . . Total Part Build Rating . | . . . . Parts Repaired . | . . . . Time . | . . . . Parts Recycled . | . . . . Recycled Matter . | . . . . Retrieved Matter . | . . . . Retrieved Components . | . . . . Parts Scanalyzed . | . . . . Part Schematics Acquired . | . . . . Parts Damaged . | . . . . Bothacking | -11 -10 -9 -8 ------------ Run | Yrd Mat Mat Mat Used RIF Installer . | . . . . Robots Hacked . | . . . . Non-combat . | . . . . Combat . | . . . . Robot Hacks Applied . | . . . . Relay Couplers Released . | . . . . Fabnet Peak Effective % . | . . . . Robots Rewired . | . . . . Allies Hacked . | . . . . Hacks Repelled . | . . . . Allies | -11 -10 -9 -8 -------- Run | Yrd Mat Mat Mat Total Allies . | . . . . Largest Group . | . . . . Highest-Rated Group . | . . . . Highest-Rated Ally . | . . . . Total Orders . | . . . . Ally Attacks . | . . . . Total Damage . | . . . . Kills . | . . . . Allies Corrupted . | . . . . Allies Melted . | . . . . Intel | -11 -10 -9 -8 ------- Run | Yrd Mat Mat Mat Active Infowar (turns) 1704 | . 811 825 68 ECM 1704 | . 811 825 68 Robot Analysis Total . | . . . . Derelict Logs Recovered . | . . . . Drone Launches . | . . . . Drone Recoveries . | . . . . Exploration | -11 -10 -9 -8 ------------- Run | Yrd Mat Mat Mat Turns Passed 2138 | 72 992 825 249 Spaces Moved 1058 | 51 472 470 65 Core 7 | 7 . . . Treads . | . . . . Legs 1051 | 44 472 470 65 Wheels . | . . . . Hover . | . . . . Flight . | . . . . Fastest Speed 50 | 50 120 120 120 Average Speed 140 | 113 160 125 125 Slowest Speed 260 | 190 190 190 260 Overloaded Moves . | . . . . Propulsion Burnouts . | . . . . Robots Hopped . | . . . . Potential Cave-ins . | . . . . Cave-ins Triggered . | . . . . Exploration Rate (%) 28 | 4 58 43 7 Regions Visited 3 Branch Regions . Pre-discovered Areas . | . . . . Known Exits Taken . | . . . . Unknown Exits Taken 3 | 1 1 1 . Scrap Searched . | . . . . Spaces Dug . | . . . . Terrain Destroyed 45 | . 27 11 7 Melee . | . . . . Projectile . | . . . . AOE 45 | . 27 11 7 Terrain Rammed . | . . . . Walls Destroyed . | . . . . Machines Disabled . | . . . . Actions | -11 -10 -9 -8 --------- Run | Yrd Mat Mat Mat Total 1472 | 62 636 621 153 Wait 190 | 4 94 76 16 Move 1055 | 50 471 469 65 Hop . | . . . . Pick Up 19 | 1 9 7 2 Fast Attach 12 | 6 4 . 2 Attach 23 | . 3 3 17 Detach 1 | . 1 . . Swap 44 | 1 19 13 11 Drop 15 | . 4 10 1 Fire 112 | . 31 42 39 Melee . | . . . . Ram . | . . . . Kick 1 | . . 1 . Crush . | . . . . Escape Stasis . | . . . . Rewire . | . . . . Trap . | . . . . Miscellaneous . | . . . . Route ------- -11/Scrapyard -10/Materials (discovered 3 exits: *Mat x2 / [*Min]) -9/Materials -8/Materials History --------- Turn | Location | Event 27 | -11/Scrapyard | Discovered new exit (range 14) 73 | -11/Scrapyard | Entered Materials 332 | -10/Materials | Build established: Mutant 367 | -10/Materials | Discovered new exit (range 13) 642 | -10/Materials | Discovered new exit (range 6) 915 | -10/Materials | Core integrity fell below 50% 1058 | -10/Materials | Discovered new exit (range 5) 1065 | -10/Materials | Entered another Materials area 1065 | -9/Materials | Evolved 2 slots: Propulsion x2 1389 | -9/Materials | Build established: Scavenger-Mutant 1872 | -9/Materials | Discovered new exit (range 15) 1890 | -9/Materials | Entered another Materials area 1890 | -8/Materials | Evolved 2 slots: Utility x2 1915 | -8/Materials | Garrison activated, responded to threat 1989 | -8/Materials | Lost 3 parts (1p1n1u) 2050 | -8/Materials | Lost 3 parts (3n) 2106 | -8/Materials | Core integrity fell below 50% 2139 | -8/Materials | Self-destructed Last Messages --------------- 02108_ U-05 Engineer destroyed. 02108_ Destroyed Lgt. Ion Engine. 02108_ U-05 Engineer destroyed. 02108_ Penetrated by Slug. 02108_ EM Shotgun destroyed. 02108_ Aluminum Leg destroyed. 02108_ Imp. Carbon-fiber Leg destroyed. 02108_ Aluminum Leg destroyed. 02108_ EM Shotgun destroyed. 02108_ Knocked back. 02111_ H-61 Shepherd IFF system glitched. 02113_ Particle Gun destroyed. 02118_ A-02 Transporter destroyed. 02121_ Ion Engine destroyed. 02122_ K-01 Serf collects debris. 02124_ Particle Gun destroyed. 02126_ Acquired 22 matter. 02126_ K-01 Serf collects debris. 02137_ Pulse Rifle destroyed. 02138_ K-01 Serf collects debris. Map ----- +----------------------------------------------------+ | | | | | | | | | ?????????????????????????????????????????????????? | | ?????????????????????????????????????????????????? | | ?????????????????????????????????????????????????? | | ?????????????????????????????????????????????????? | | ?????????????????????????????????????????????????? | | ?????????????????????????????????????????????????? | | ?????????????????????????????????????????????????? | | ?????????????????????????????????????????????????? | | ?????????????????????????????????????????????????? | | ?????????????????????????????????????????????????? | | ????????????????????????#####????????????????????? | | ?????????????????######## #????????????????????? | | ?????????????????# # #????????????????????? | | ?????????????????# [ ! # #????????????????????? | | ?????????????????# + #########????????????? | | ?????????????????# "T" # # ????????????? | | ?????????????????# """ # # <<< ????????????? | | ?????????????????# # # <<< ????????????? | | ?????????????????######## # <""" ????????????? | | ????????????????????????# % ; !"""" ????????????? | | ????????????????????????# =%# <<<< ????????????? | | ????????????????????????#@ =; <<<< ????????????? | | ????????????????????????# =[# <<< ????????????? | | ??????????????????????# | # ????????????? | | ??????????????????????#" Hg*=#########???????????? | | ???????################; =! ## ????????????? | | ???????# "T" # !%!|[ ## ????????????? | | ???????# # % =k!= ## ????????????? | | ???????# # w=*Y ## ????????????? | | ???????# # ####%%gg ;# ????????????? | | ???????# # "#####/##########????????????? | | ????????????????# #??? %%= ????????????????????? | | ??????????????? + #?? [[" #??????????????????? | | ?????????????? # #? !"G" #??????????????????? | | ????????????? ?# ## *" " #??????????????????? | | ????????????##??# ?# #??????????????????? | | ???????????????? ?#! """ #??????????????????? | | ???????????????? ! ?# """ ???????????????????? | | ??????????????? ?# "?" ???????????????????? | | ??????????????? ?# ?? ???????????????????? | | ???????????????# ! ?####????#???????????????????? | | ?????????????????###?????????????????????????????? | | ?????????????????????????????????????????????????? | | ?????????????????????????????????????????????????? | | ?????????????????????????????????????????????????? | | ?????????????????????????????????????????????????? | +----------------------------------------------------+ Best States ------------- Heat Dissipation 45 Energy Generation 16 Energy Capacity 290 Matter Stores 300 Matter Capacity 300 Sight Range 16 Terrain Scan Density 10 ECM Strength 1 Evasion (%) 55 Targeting Accuracy 8 Offensive Hacking 10 Item Schematics ----------------- None Robot Schematics ------------------ None Fabricated ------------ Nothing Repaired ---------- Nothing Alien Tech Used ----------------- None Achievements -------------- None Challenges ------------ None Game ------ Seed HeatDispersalBank Manual? 0 Play Time 00:15:22 Cumulative 28.4 hours Start 2025.08.12 @ 00:13:52 End 2025.08.13 @ 13:24:06 Sessions 2 Manual Loads 0 Difficulty Rogue Special Mode None Game No. 81 Rogue 81 Adventurer 0 Explorer 0 Win Type - Total 0 Types 0/0/0/0/0/0/0/0/0/0 Lore% 14 Gallery% 26 Achievement% 21 Wizard Run 0 Options --------- Layout 1 ASCII 0 Keyboard 0 Movement Mouse Keybinds 0 Fullscreen 1 Font 24/Smallcaps Map View 50x35 Zoom Use 3% Tactical HUD 1 Map Filters NONE Filters NONE Steam 1 RUN: 404c6683-8fb6-45a1-bf71-8dbaa1383315